[Event "Titled Tuesday Blitz June 20 Early 2023"]
[White "Fiorito, Joaquin"]
[Black "Lehtosaari, Mauri"]
[WhiteFideId "180173"]
[BlackFideId "501999"]
[WhiteElo "2199"]
[BlackElo "2523"]
[Result "1-0"]
[Round "11"]
[TimeControl "180+2"]
[Date "2023.06.20"]
[WhiteClock "0:00:28"]
[BlackClock "0:00:05"]
[Board "52"]

1. d4 {[%clk 0:03:00]}  d5 {[%clk 0:02:55]} 2. c4 {[%clk 0:03:01]}  c6 {[%clk 0:02:54]} 3. Nc3 {[%clk 0:03:01]}  Nf6 {[%clk 0:02:53]} 4. e3 {[%clk 0:03:01]}  a6 {[%clk 0:02:47]} 5. Nf3 {[%clk 0:02:59]}  b5 {[%clk 0:02:45]} 6. b3 {[%clk 0:02:57]}  Bg4 {[%clk 0:02:44]} 7. Be2 {[%clk 0:02:53]}  e6 {[%clk 0:02:44]} 8. O-O {[%clk 0:02:52]}  Nbd7 {[%clk 0:02:43]} 9. a4 {[%clk 0:02:53]}  b4 {[%clk 0:02:43]} 10. Nb1 {[%clk 0:02:52]}  a5 {[%clk 0:02:43]} 11. Nbd2 {[%clk 0:02:49]}  Bd6 {[%clk 0:02:42]} 12. Bb2 {[%clk 0:02:49]}  O-O {[%clk 0:02:39]} 13. Qc2 {[%clk 0:02:47]}  Rc8 {[%clk 0:02:36]} 14. e4 {[%clk 0:02:37]}  Bf4 {[%clk 0:02:25]} 15. e5 {[%clk 0:02:24]}  Ne8 {[%clk 0:02:24]} 16. Bd3 {[%clk 0:02:10]}  g6 {[%clk 0:02:16]} 17. c5 {[%clk 0:02:02]}  Ng7 {[%clk 0:02:09]} 18. h3 {[%clk 0:01:52]}  Bf5 {[%clk 0:02:05]} 19. Rfe1 {[%clk 0:01:45]}  Bxd3 {[%clk 0:02:01]} 20. Qxd3 {[%clk 0:01:46]}  Nf5 {[%clk 0:01:59]} 21. Nf1 {[%clk 0:01:45]}  Re8 {[%clk 0:01:39]} 22. Bc1 {[%clk 0:01:45]}  Bxc1 {[%clk 0:01:36]} 23. Raxc1 {[%clk 0:01:44]}  h6 {[%clk 0:01:12]} 24. g4 {[%clk 0:01:22]}  Nh4 {[%clk 0:01:10]} 25. Ng3 {[%clk 0:01:20]}  Nf8 {[%clk 0:01:00]} 26. Nh2 {[%clk 0:01:15]}  Ra8 {[%clk 0:00:50]} 27. f4 {[%clk 0:01:13]}  Nh7 {[%clk 0:00:49]} 28. Rf1 {[%clk 0:01:11]}  Rf8 {[%clk 0:00:47]} 29. Kh1 {[%clk 0:01:10]}  Qe7 {[%clk 0:00:46]} 30. f5 {[%clk 0:01:10]}  Ng5 {[%clk 0:00:39]} 31. Qe3 {[%clk 0:01:02]}  Kh7 {[%clk 0:00:34]} 32. Rf2 {[%clk 0:01:00]}  gxf5 {[%clk 0:00:28]} 33. gxf5 {[%clk 0:01:00]}  Nxf5 {[%clk 0:00:27]} 34. Nxf5 {[%clk 0:01:00]}  exf5 {[%clk 0:00:28]} 35. Rxf5 {[%clk 0:00:59]}  f6 {[%clk 0:00:26]} 36. h4 {[%clk 0:00:47]}  Ne4 {[%clk 0:00:26]} 37. Ng4 {[%clk 0:00:45]}  Qg7 {[%clk 0:00:25]} 38. Rg1 {[%clk 0:00:43]}  fxe5 {[%clk 0:00:15]} 39. Nf6+ {[%clk 0:00:41]}  Qxf6 {[%clk 0:00:15]} 40. Rxf6 {[%clk 0:00:42]}  Rxf6 {[%clk 0:00:16]} 41. dxe5 {[%clk 0:00:41]}  Rf5 {[%clk 0:00:13]} 42. e6 {[%clk 0:00:39]}  Re8 {[%clk 0:00:12]} 43. Qd4 {[%clk 0:00:37]}  Re7 {[%clk 0:00:11]} 44. Kh2 {[%clk 0:00:30]}  Rf6 {[%clk 0:00:09]} 45. Qe5 {[%clk 0:00:27]}  Rfxe6 {[%clk 0:00:05]} 46. Qf5+ {[%clk 0:00:27]}  Kh8 {[%clk 0:00:05]} 47. Qf8+ {[%clk 0:00:27]}  Kh7 {[%clk 0:00:05]} 48. Qg8# {[%clk 0:00:28]} 1-0


[Site "https://www.chess.com"]

[Event "Titled Tuesday Blitz June 20 Early 2023"]
[White "Skliarov, Viktor"]
[Black "Baskakov, Egor"]
[WhiteFideId "14106736"]
[BlackFideId "24197866"]
[WhiteElo "2317"]
[BlackElo "2225"]
[Result "1/2-1/2"]
[Round "11"]
[TimeControl "180+2"]
[Date "2023.06.20"]
[WhiteClock "0:00:06"]
[BlackClock "0:00:08"]
[Board "56"]

1. e4 {[%clk 0:03:00]}  c5 {[%clk 0:02:56]} 2. Nf3 {[%clk 0:03:00]}  Nf6 {[%clk 0:02:55]} 3. e5 {[%clk 0:03:00]}  Nd5 {[%clk 0:02:55]} 4. Nc3 {[%clk 0:03:00]}  e6 {[%clk 0:02:55]} 5. Nxd5 {[%clk 0:03:01]}  exd5 {[%clk 0:02:56]} 6. d4 {[%clk 0:03:01]}  Nc6 {[%clk 0:02:57]} 7. dxc5 {[%clk 0:02:53]}  Bxc5 {[%clk 0:02:58]} 8. c3 {[%clk 0:02:54]}  d6 {[%clk 0:02:58]} 9. exd6 {[%clk 0:02:50]}  Qxd6 {[%clk 0:02:59]} 10. Bd3 {[%clk 0:02:49]}  O-O {[%clk 0:02:58]} 11. O-O {[%clk 0:02:49]}  h6 {[%clk 0:02:58]} 12. h3 {[%clk 0:02:49]}  Bd7 {[%clk 0:02:58]} 13. b4 {[%clk 0:02:20]}  Bb6 {[%clk 0:02:56]} 14. b5 {[%clk 0:02:14]}  Na5 {[%clk 0:02:46]} 15. a4 {[%clk 0:02:10]}  Rfe8 {[%clk 0:02:46]} 16. Ba3 {[%clk 0:02:01]}  Qf6 {[%clk 0:02:45]} 17. Bb4 {[%clk 0:02:01]}  Rad8 {[%clk 0:02:40]} 18. Nd4 {[%clk 0:01:58]}  Nc4 {[%clk 0:02:36]} 19. Bxc4 {[%clk 0:01:02]}  dxc4 {[%clk 0:02:36]} 20. Qf3 {[%clk 0:01:02]}  Qg6 {[%clk 0:02:22]} 21. Qg3 {[%clk 0:00:47]}  Qxg3 {[%clk 0:02:17]} 22. fxg3 {[%clk 0:00:46]}  Bxd4+ {[%clk 0:02:17]} 23. cxd4 {[%clk 0:00:46]}  Be6 {[%clk 0:02:17]} 24. Bc3 {[%clk 0:00:41]}  Bd5 {[%clk 0:01:56]} 25. Rfe1 {[%clk 0:00:36]}  f6 {[%clk 0:01:55]} 26. Kf2 {[%clk 0:00:34]}  Kf7 {[%clk 0:01:55]} 27. g4 {[%clk 0:00:33]}  a6 {[%clk 0:01:40]} 28. g3 {[%clk 0:00:29]}  Rxe1 {[%clk 0:01:36]} 29. Rxe1 {[%clk 0:00:26]}  axb5 {[%clk 0:01:36]} 30. axb5 {[%clk 0:00:27]}  Ra8 {[%clk 0:01:36]} 31. Bb4 {[%clk 0:00:20]}  Ra2+ {[%clk 0:01:32]} 32. Re2 {[%clk 0:00:17]}  Ra4 {[%clk 0:01:31]} 33. Bc5 {[%clk 0:00:15]}  c3 {[%clk 0:01:21]} 34. Re7+ {[%clk 0:00:14]}  Kg6 {[%clk 0:01:20]} 35. Rc7 {[%clk 0:00:14]}  Rc4 {[%clk 0:01:12]} 36. Bd6 {[%clk 0:00:12]}  Rxd4 {[%clk 0:00:44]} 37. Rxc3 {[%clk 0:00:11]}  Bf7 {[%clk 0:00:24]} 38. Bc5 {[%clk 0:00:09]}  Rd2+ {[%clk 0:00:23]} 39. Ke3 {[%clk 0:00:10]}  Rb2 {[%clk 0:00:23]} 40. b6 {[%clk 0:00:10]}  h5 {[%clk 0:00:21]} 41. gxh5+ {[%clk 0:00:09]}  Kxh5 {[%clk 0:00:22]} 42. Bd4 {[%clk 0:00:09]}  Kg6 {[%clk 0:00:18]} 43. Rc7 {[%clk 0:00:09]}  Rb3+ {[%clk 0:00:17]} 44. Kf2 {[%clk 0:00:08]}  Bd5 {[%clk 0:00:17]} 45. Be3 {[%clk 0:00:06]}  Rb2+ {[%clk 0:00:16]} 46. Ke1 {[%clk 0:00:06]}  Rh2 {[%clk 0:00:13]} 47. h4 {[%clk 0:00:05]}  Kf5 {[%clk 0:00:13]} 48. Rxg7 {[%clk 0:00:04]}  Ke4 {[%clk 0:00:13]} 49. Re7+ {[%clk 0:00:03]}  Kf3 {[%clk 0:00:14]} 50. Bf4 {[%clk 0:00:04]}  Rb2 {[%clk 0:00:10]} 51. Re3+ {[%clk 0:00:03]}  Kg4 {[%clk 0:00:11]} 52. Bc7 {[%clk 0:00:03]}  Bc6 {[%clk 0:00:11]} 53. Kd1 {[%clk 0:00:04]}  f5 {[%clk 0:00:11]} 54. Kc1 {[%clk 0:00:04]}  Rh2 {[%clk 0:00:10]} 55. Rc3 {[%clk 0:00:04]}  Be4 {[%clk 0:00:10]} 56. Kd1 {[%clk 0:00:04]}  Bf3+ {[%clk 0:00:09]} 57. Kc1 {[%clk 0:00:05]}  Be4 {[%clk 0:00:10]} 58. Kd1 {[%clk 0:00:05]}  Ra2 {[%clk 0:00:10]} 59. Kc1 {[%clk 0:00:05]}  Ra4 {[%clk 0:00:09]} 60. Kd2 {[%clk 0:00:06]}  Ra2+ {[%clk 0:00:08]} 61. Kc1 {[%clk 0:00:06]}  Kh5 {[%clk 0:00:08]} 62. Kd1 {[%clk 0:00:06]}  Kg6 {[%clk 0:00:08]} 63. Kc1 {[%clk 0:00:06]}  Kf7 {[%clk 0:00:08]} 64. Kd1 {[%clk 0:00:07]}  Rh2 {[%clk 0:00:08]} 65. Kc1 {[%clk 0:00:07]}  Ke6 {[%clk 0:00:08]} 66. Kd1 {[%clk 0:00:07]}  Kd5 {[%clk 0:00:09]} 67. Kc1 {[%clk 0:00:07]}  Kd4 {[%clk 0:00:09]} 68. Ra3 {[%clk 0:00:07]}  Rc2+ {[%clk 0:00:10]} 69. Kd1 {[%clk 0:00:07]}  Rh2 {[%clk 0:00:10]} 70. Kc1 {[%clk 0:00:07]}  Kc4 {[%clk 0:00:09]} 71. Kd1 {[%clk 0:00:07]}  Kd4 {[%clk 0:00:08]} 72. Kc1 {[%clk 0:00:06]} 1/2-1/2


[Site "https://www.chess.com"]

[Event "Titled Tuesday Blitz June 20 Early 2023"]
[White "Renjith, Sravan"]
[Black "Ambartsumova, Karina"]
[WhiteFideId "4306783"]
[BlackFideId "4166299"]
[WhiteElo "2104"]
[BlackElo "2240"]
[Result "1-0"]
[Round "11"]
[TimeControl "180+2"]
[Date "2023.06.20"]
[WhiteClock "0:00:08"]
[BlackClock "0:00:09"]
[Board "59"]

1. b3 {[%clk 0:03:00]}  e5 {[%clk 0:02:59]} 2. Bb2 {[%clk 0:03:01]}  Nc6 {[%clk 0:03:00]} 3. e3 {[%clk 0:03:01]}  g6 {[%clk 0:03:00]} 4. Nf3 {[%clk 0:03:01]}  Bg7 {[%clk 0:03:00]} 5. Bb5 {[%clk 0:02:58]}  Nge7 {[%clk 0:03:00]} 6. O-O {[%clk 0:02:58]}  O-O {[%clk 0:03:00]} 7. d4 {[%clk 0:02:57]}  d6 {[%clk 0:02:58]} 8. dxe5 {[%clk 0:02:55]}  Nxe5 {[%clk 0:02:56]} 9. Nxe5 {[%clk 0:02:55]}  dxe5 {[%clk 0:02:53]} 10. Qxd8 {[%clk 0:02:53]}  Rxd8 {[%clk 0:02:54]} 11. Na3 {[%clk 0:02:54]}  c6 {[%clk 0:02:48]} 12. Be2 {[%clk 0:02:49]}  Bf5 {[%clk 0:02:46]} 13. Rad1 {[%clk 0:02:46]}  b5 {[%clk 0:02:44]} 14. g4 {[%clk 0:02:41]}  Be6 {[%clk 0:02:41]} 15. c4 {[%clk 0:02:38]}  a6 {[%clk 0:02:31]} 16. f4 {[%clk 0:02:23]}  exf4 {[%clk 0:01:52]} 17. Bxg7 {[%clk 0:02:24]}  f3 {[%clk 0:01:52]} 18. Bxf3 {[%clk 0:01:58]}  Kxg7 {[%clk 0:01:52]} 19. c5 {[%clk 0:01:16]}  Nd5 {[%clk 0:01:39]} 20. Bxd5 {[%clk 0:01:15]}  Bxd5 {[%clk 0:01:37]} 21. Nc2 {[%clk 0:01:13]}  a5 {[%clk 0:01:34]} 22. Nd4 {[%clk 0:01:11]}  b4 {[%clk 0:01:30]} 23. g5 {[%clk 0:01:10]}  Re8 {[%clk 0:01:29]} 24. Rde1 {[%clk 0:00:59]}  a4 {[%clk 0:01:29]} 25. Rf2 {[%clk 0:00:52]}  axb3 {[%clk 0:01:25]} 26. axb3 {[%clk 0:00:51]}  Ra3 {[%clk 0:01:24]} 27. h4 {[%clk 0:00:46]}  Re4 {[%clk 0:01:12]} 28. Rf4 {[%clk 0:00:43]}  Ra2 {[%clk 0:01:07]} 29. h5 {[%clk 0:00:30]}  Rg2+ {[%clk 0:00:53]} 30. Kxg2 {[%clk 0:00:23]}  Rxf4+ {[%clk 0:00:47]} 31. Kg3 {[%clk 0:00:22]}  Re4 {[%clk 0:00:40]} 32. h6+ {[%clk 0:00:22]}  Kf8 {[%clk 0:00:39]} 33. Kf2 {[%clk 0:00:20]}  Re5 {[%clk 0:00:33]} 34. Ra1 {[%clk 0:00:16]}  Rxg5 {[%clk 0:00:32]} 35. Ra8+ {[%clk 0:00:16]}  Ke7 {[%clk 0:00:33]} 36. Rh8 {[%clk 0:00:17]}  Rg2+ {[%clk 0:00:26]} 37. Ke1 {[%clk 0:00:17]}  Rh2 {[%clk 0:00:19]} 38. Rxh7 {[%clk 0:00:17]}  Kf6 {[%clk 0:00:19]} 39. Rh8 {[%clk 0:00:17]}  g5 {[%clk 0:00:20]} 40. h7 {[%clk 0:00:09]}  Be4 {[%clk 0:00:14]} 41. Nxc6 {[%clk 0:00:06]}  Bxc6 {[%clk 0:00:14]} 42. Rc8 {[%clk 0:00:06]}  Rh1+ {[%clk 0:00:11]} 43. Kd2 {[%clk 0:00:05]}  Rh2+ {[%clk 0:00:10]} 44. Ke1 {[%clk 0:00:02]}  Rxh7 {[%clk 0:00:10]} 45. Rxc6+ {[%clk 0:00:02]}  Ke5 {[%clk 0:00:10]} 46. Rb6 {[%clk 0:00:03]}  Ke4 {[%clk 0:00:09]} 47. Kf2 {[%clk 0:00:03]}  Rh2+ {[%clk 0:00:08]} 48. Kg3 {[%clk 0:00:03]}  Rc2 {[%clk 0:00:07]} 49. Rxb4+ {[%clk 0:00:04]}  Kxe3 {[%clk 0:00:07]} 50. Rc4 {[%clk 0:00:05]}  Rb2 {[%clk 0:00:07]} 51. c6 {[%clk 0:00:06]}  f5 {[%clk 0:00:07]} 52. c7 {[%clk 0:00:06]}  f4+ {[%clk 0:00:08]} 53. Kg4 {[%clk 0:00:06]}  Rg2+ {[%clk 0:00:08]} 54. Kf5 {[%clk 0:00:07]}  f3 {[%clk 0:00:08]} 55. c8=Q {[%clk 0:00:07]}  f2 {[%clk 0:00:09]} 56. Qe6+ {[%clk 0:00:08]}  Kd2 {[%clk 0:00:08]} 57. Qd5+ {[%clk 0:00:07]}  Ke1 {[%clk 0:00:08]} 58. Rc1+ {[%clk 0:00:06]}  Ke2 {[%clk 0:00:08]} 59. Qd1+ {[%clk 0:00:07]}  Ke3 {[%clk 0:00:09]} 60. Rc3# {[%clk 0:00:08]} 1-0


[Site "https://www.chess.com"]

[Event "Titled Tuesday Blitz June 20 Early 2023"]
[White "Marek, Matyas"]
[Black "Yelisieiev, Yevhenii"]
[WhiteFideId "335398"]
[BlackFideId "14139642"]
[WhiteElo "2302"]
[BlackElo "2403"]
[Result "1-0"]
[Round "11"]
[TimeControl "180+2"]
[Date "2023.06.20"]
[WhiteClock "0:00:51"]
[BlackClock "0:00:00"]
[Board "63"]

1. Nf3 {[%clk 0:03:00]}  d6 {[%clk 0:03:00]} 2. g3 {[%clk 0:03:01]}  Nf6 {[%clk 0:03:01]} 3. Bg2 {[%clk 0:03:02]}  Nbd7 {[%clk 0:03:01]} 4. O-O {[%clk 0:03:03]}  e5 {[%clk 0:03:01]} 5. d3 {[%clk 0:03:04]}  Be7 {[%clk 0:03:02]} 6. e4 {[%clk 0:03:04]}  O-O {[%clk 0:03:02]} 7. Nbd2 {[%clk 0:03:05]}  c6 {[%clk 0:02:58]} 8. Re1 {[%clk 0:03:05]}  Re8 {[%clk 0:02:58]} 9. c3 {[%clk 0:03:05]}  Bf8 {[%clk 0:02:57]} 10. d4 {[%clk 0:03:05]}  a5 {[%clk 0:02:55]} 11. a4 {[%clk 0:03:05]}  Qc7 {[%clk 0:02:48]} 12. b3 {[%clk 0:03:05]}  b6 {[%clk 0:02:38]} 13. Bb2 {[%clk 0:03:04]}  Ba6 {[%clk 0:02:39]} 14. Qc2 {[%clk 0:03:03]}  Rad8 {[%clk 0:02:34]} 15. Rad1 {[%clk 0:03:03]}  g6 {[%clk 0:02:19]} 16. h3 {[%clk 0:02:58]}  Bg7 {[%clk 0:02:13]} 17. Nc4 {[%clk 0:02:56]}  exd4 {[%clk 0:01:48]} 18. cxd4 {[%clk 0:02:51]}  Nxe4 {[%clk 0:01:38]} 19. Rxe4 {[%clk 0:02:32]}  Rxe4 {[%clk 0:01:37]} 20. Qxe4 {[%clk 0:02:24]}  d5 {[%clk 0:01:37]} 21. Qc2 {[%clk 0:02:23]}  dxc4 {[%clk 0:01:37]} 22. bxc4 {[%clk 0:02:24]}  Nc5 {[%clk 0:01:07]} 23. dxc5 {[%clk 0:02:07]}  Rxd1+ {[%clk 0:01:06]} 24. Qxd1 {[%clk 0:02:07]}  Bxb2 {[%clk 0:01:07]} 25. Qb3 {[%clk 0:02:06]}  Bf6 {[%clk 0:00:47]} 26. cxb6 {[%clk 0:02:07]}  Qe7 {[%clk 0:00:30]} 27. c5 {[%clk 0:01:47]}  Bb7 {[%clk 0:00:18]} 28. Qc4 {[%clk 0:01:29]}  Qe6 {[%clk 0:00:18]} 29. Qxe6 {[%clk 0:01:13]}  fxe6 {[%clk 0:00:18]} 30. Nd2 {[%clk 0:01:13]}  Be7 {[%clk 0:00:17]} 31. Ne4 {[%clk 0:01:13]}  Kf7 {[%clk 0:00:14]} 32. f4 {[%clk 0:01:10]}  Ke8 {[%clk 0:00:15]} 33. Bf1 {[%clk 0:01:11]}  Kd7 {[%clk 0:00:14]} 34. Bc4 {[%clk 0:01:11]}  Bf8 {[%clk 0:00:10]} 35. Kf2 {[%clk 0:01:08]}  Bg7 {[%clk 0:00:10]} 36. Ke3 {[%clk 0:01:09]}  Kc8 {[%clk 0:00:04]} 37. Bxe6+ {[%clk 0:01:07]}  Kb8 {[%clk 0:00:04]} 38. g4 {[%clk 0:01:05]}  Bb2 {[%clk 0:00:04]} 39. f5 {[%clk 0:01:04]}  gxf5 {[%clk 0:00:04]} 40. gxf5 {[%clk 0:01:05]}  Ba6 {[%clk 0:00:02]} 41. f6 {[%clk 0:01:02]}  Bf1 {[%clk 0:00:03]} 42. f7 {[%clk 0:00:59]}  Bg7 {[%clk 0:00:03]} 43. Ng5 {[%clk 0:00:52]}  h6 {[%clk 0:00:02]} 44. Nh7 {[%clk 0:00:52]}  Bc4 {[%clk 0:00:01]} 45. Bxc4 {[%clk 0:00:51]}  Kb7 {[%clk 0:00:00]} 46. f8=Q {[%clk 0:00:51]} 1-0


[Site "https://www.chess.com"]

[Event "Titled Tuesday Blitz June 20 Early 2023"]
[White "Rodchenkov, Sergey D."]
[Black "Weishaeutel, Moritz"]
[WhiteFideId "4168712"]
[BlackFideId "12967300"]
[WhiteElo "2277"]
[BlackElo "2301"]
[Result "1-0"]
[Round "11"]
[TimeControl "180+2"]
[Date "2023.06.20"]
[WhiteClock "0:00:30"]
[BlackClock "0:00:02"]
[Board "65"]

1. e4 {[%clk 0:03:00]}  e5 {[%clk 0:03:00]} 2. Nf3 {[%clk 0:03:01]}  Nf6 {[%clk 0:03:01]} 3. d4 {[%clk 0:03:01]}  Nxe4 {[%clk 0:03:00]} 4. Bd3 {[%clk 0:03:02]}  d5 {[%clk 0:03:01]} 5. Nxe5 {[%clk 0:03:01]}  Nd7 {[%clk 0:03:02]} 6. Nxd7 {[%clk 0:03:02]}  Bxd7 {[%clk 0:03:02]} 7. O-O {[%clk 0:03:02]}  Bd6 {[%clk 0:03:03]} 8. c4 {[%clk 0:03:01]}  c6 {[%clk 0:03:03]} 9. Nc3 {[%clk 0:02:52]}  Nxc3 {[%clk 0:02:58]} 10. bxc3 {[%clk 0:02:53]}  O-O {[%clk 0:02:58]} 11. cxd5 {[%clk 0:02:49]}  cxd5 {[%clk 0:02:59]} 12. Qh5 {[%clk 0:02:49]}  g6 {[%clk 0:02:57]} 13. Qxd5 {[%clk 0:02:46]}  Bf5 {[%clk 0:02:53]} 14. Qf3 {[%clk 0:02:39]}  Qh4 {[%clk 0:02:42]} 15. g3 {[%clk 0:02:27]}  Bg4 {[%clk 0:02:43]} 16. Qd5 {[%clk 0:02:11]}  Qh3 {[%clk 0:02:33]} 17. Qg2 {[%clk 0:02:08]}  Qh5 {[%clk 0:02:33]} 18. f3 {[%clk 0:02:05]}  Bh3 {[%clk 0:02:33]} 19. Qf2 {[%clk 0:02:04]}  Bxf1 {[%clk 0:02:33]} 20. Qxf1 {[%clk 0:02:05]}  Rfe8 {[%clk 0:02:29]} 21. Bd2 {[%clk 0:02:05]}  Re7 {[%clk 0:02:25]} 22. Rb1 {[%clk 0:02:05]}  Rae8 {[%clk 0:02:22]} 23. Rb5 {[%clk 0:02:03]}  f5 {[%clk 0:02:14]} 24. c4 {[%clk 0:02:01]}  a6 {[%clk 0:01:22]} 25. Rb6 {[%clk 0:01:54]}  Bc7 {[%clk 0:01:19]} 26. Rb3 {[%clk 0:01:38]}  f4 {[%clk 0:01:18]} 27. g4 {[%clk 0:01:28]}  Qh4 {[%clk 0:01:18]} 28. Kg2 {[%clk 0:01:22]}  Qf6 {[%clk 0:00:52]} 29. d5 {[%clk 0:01:17]}  Qd4 {[%clk 0:00:45]} 30. Qf2 {[%clk 0:01:13]}  Qa1 {[%clk 0:00:29]} 31. c5 {[%clk 0:01:05]}  Qxa2 {[%clk 0:00:20]} 32. Bc4 {[%clk 0:00:42]}  Re2 {[%clk 0:00:08]} 33. d6+ {[%clk 0:00:41]}  Kf8 {[%clk 0:00:06]} 34. Bxe2 {[%clk 0:00:41]}  Qxd2 {[%clk 0:00:06]} 35. dxc7 {[%clk 0:00:30]}  Qxe2 {[%clk 0:00:06]} 36. Qxe2 {[%clk 0:00:30]}  Rxe2+ {[%clk 0:00:07]} 37. Kf1 {[%clk 0:00:30]}  Re8 {[%clk 0:00:08]} 38. Rxb7 {[%clk 0:00:30]}  Ke7 {[%clk 0:00:02]} 39. c8=Q+ {[%clk 0:00:30]} 1-0


[Site "https://www.chess.com"]

[Event "Titled Tuesday Blitz June 20 Early 2023"]
[White "ATM622"]
[Black "Morgunov, Anatoly"]
[BlackFideId "4145909"]
[WhiteElo "2627"]
[BlackElo "2237"]
[Result "1-0"]
[Round "11"]
[TimeControl "180+2"]
[Date "2023.06.20"]
[WhiteClock "0:01:52"]
[BlackClock "0:00:35"]
[Board "70"]

1. d4 {[%clk 0:02:58]}  e6 {[%clk 0:03:00]} 2. c4 {[%clk 0:02:59]}  Nf6 {[%clk 0:03:00]} 3. g3 {[%clk 0:02:59]}  d5 {[%clk 0:02:55]} 4. Bg2 {[%clk 0:02:59]}  Bb4+ {[%clk 0:02:54]} 5. Nd2 {[%clk 0:02:59]}  O-O {[%clk 0:02:52]} 6. Qc2 {[%clk 0:02:59]}  dxc4 {[%clk 0:02:52]} 7. Qxc4 {[%clk 0:02:58]}  Bxd2+ {[%clk 0:02:37]} 8. Bxd2 {[%clk 0:02:57]}  Nc6 {[%clk 0:02:33]} 9. Nf3 {[%clk 0:02:55]}  Bd7 {[%clk 0:02:30]} 10. O-O {[%clk 0:02:55]}  Ne7 {[%clk 0:02:28]} 11. Ne5 {[%clk 0:02:53]}  Bc6 {[%clk 0:02:16]} 12. Nxc6 {[%clk 0:02:46]}  Nxc6 {[%clk 0:02:16]} 13. e3 {[%clk 0:02:45]}  Ne7 {[%clk 0:02:01]} 14. Rac1 {[%clk 0:02:44]}  c6 {[%clk 0:02:00]} 15. Rfd1 {[%clk 0:02:38]}  Ned5 {[%clk 0:02:00]} 16. e4 {[%clk 0:02:36]}  Nb6 {[%clk 0:02:01]} 17. Qd3 {[%clk 0:02:34]}  h6 {[%clk 0:02:00]} 18. f4 {[%clk 0:02:31]}  Qe7 {[%clk 0:02:00]} 19. a3 {[%clk 0:02:30]}  Rfd8 {[%clk 0:01:58]} 20. Bb4 {[%clk 0:02:30]}  Qd7 {[%clk 0:01:53]} 21. Bf3 {[%clk 0:02:25]}  Ne8 {[%clk 0:01:34]} 22. Ba5 {[%clk 0:02:25]}  Nc7 {[%clk 0:01:30]} 23. Qb3 {[%clk 0:02:23]}  Nb5 {[%clk 0:01:20]} 24. d5 {[%clk 0:02:23]}  exd5 {[%clk 0:01:19]} 25. exd5 {[%clk 0:02:23]}  cxd5 {[%clk 0:01:07]} 26. Bxb6 {[%clk 0:02:20]}  axb6 {[%clk 0:01:07]} 27. Bxd5 {[%clk 0:02:20]}  Qe8 {[%clk 0:00:59]} 28. Bxf7+ {[%clk 0:02:16]}  Qxf7 {[%clk 0:00:58]} 29. Qxb5 {[%clk 0:02:16]}  Qf6 {[%clk 0:00:49]} 30. Kg2 {[%clk 0:02:10]}  Re8 {[%clk 0:00:43]} 31. Re1 {[%clk 0:02:06]}  Red8 {[%clk 0:00:42]} 32. Rcd1 {[%clk 0:02:04]}  Rdc8 {[%clk 0:00:42]} 33. Re2 {[%clk 0:02:01]}  Rc5 {[%clk 0:00:38]} 34. Re8+ {[%clk 0:01:58]}  Rxe8 {[%clk 0:00:37]} 35. Qxe8+ {[%clk 0:01:59]}  Kh7 {[%clk 0:00:37]} 36. Qe4+ {[%clk 0:01:57]}  Qg6 {[%clk 0:00:30]} 37. Qxg6+ {[%clk 0:01:55]}  Kxg6 {[%clk 0:00:31]} 38. Rd6+ {[%clk 0:01:55]}  Kf5 {[%clk 0:00:29]} 39. Rxb6 {[%clk 0:01:56]}  Kg4 {[%clk 0:00:27]} 40. h3+ {[%clk 0:01:54]}  Kf5 {[%clk 0:00:27]} 41. Rxb7 {[%clk 0:01:52]}  Ke4 {[%clk 0:00:27]} 42. Re7+ {[%clk 0:01:49]}  Kd3 {[%clk 0:00:27]} 43. Kf3 {[%clk 0:01:47]}  Rc2 {[%clk 0:00:26]} 44. Rd7+ {[%clk 0:01:45]}  Kc4 {[%clk 0:00:26]} 45. Rc7+ {[%clk 0:01:46]}  Kb3 {[%clk 0:00:27]} 46. Rxc2 {[%clk 0:01:46]}  Kxc2 {[%clk 0:00:28]} 47. a4 {[%clk 0:01:47]}  Kb3 {[%clk 0:00:28]} 48. a5 {[%clk 0:01:47]}  g5 {[%clk 0:00:28]} 49. a6 {[%clk 0:01:48]}  g4+ {[%clk 0:00:28]} 50. hxg4 {[%clk 0:01:48]}  h5 {[%clk 0:00:28]} 51. gxh5 {[%clk 0:01:49]}  Kb4 {[%clk 0:00:29]} 52. a7 {[%clk 0:01:49]}  Kb5 {[%clk 0:00:30]} 53. a8=Q {[%clk 0:01:50]}  Kb6 {[%clk 0:00:31]} 54. Qe4 {[%clk 0:01:50]}  Kc5 {[%clk 0:00:31]} 55. h6 {[%clk 0:01:51]}  Kb5 {[%clk 0:00:32]} 56. h7 {[%clk 0:01:51]}  Kb6 {[%clk 0:00:33]} 57. h8=Q {[%clk 0:01:52]}  Kc7 {[%clk 0:00:34]} 58. Qg7+ {[%clk 0:01:51]}  Kd8 {[%clk 0:00:34]} 59. Qee7+ {[%clk 0:01:51]}  Kc8 {[%clk 0:00:35]} 60. Qgf8# {[%clk 0:01:52]} 1-0


[Site "https://www.chess.com"]